[Event "WYCC U18 Girls 2019"]
[Site "Mumbai"]
[Date "2019.10.09"]
[Round "8.10"]
[White "Radeva, Viktoria"]
[Black "Laurincova, Kristyna"]
[Result "1/2-1/2"]
[ECO "B39"]
[WhiteElo "2277"]
[BlackElo "2006"]
[Annotator "ChessBase"]
[PlyCount "135"]
[EventDate "2019.10.02"]
[EventType "swiss"]
[EventCountry "IND"]
[SourceTitle "playchess.com"]
[Source "ChessBase"]
[SourceQuality "1"]
[TimeControl "40/5400+30:1800+30"]

1. e4 {[%emt 0:00:00]} c5 {[%emt 0:00:00]} 2. Nf3 {[%emt 0:00:00]} g6 {[%emt 0:00:50]} 3. c4 {[%emt 0:01:00]} Bg7 {[%emt 0:00:10]} 4. d4 {[%emt 0:00:32]} cxd4 {[%emt 0:00:15]} 5. Nxd4 {[%emt 0:00:03]} Nc6 {[%emt 0:00:05]} 6. Be3 {[%emt 0:00:52]} Nf6 {[%emt 0:00:09]} 7. Nc3 {[%emt 0:00:09]} Ng4 {[%emt 0:00:31]} 8. Qxg4 {[%emt 0:00:06]} Nxd4 {[%emt 0:00:05]} 9. Qd1 {[%emt 0:00:07]} e5 {[%emt 0:00:19]} 10. Bd3 {[%emt 0:00:19]} O-O {[%emt 0:00:37]} 11. O-O {[%emt 0:00:10]} b6 {[%emt 0:00:48]} 12. Qd2 {[%emt 0:09:21]} Bb7 {[%emt 0:00:59]} 13. Rad1 {[%emt 0:01:56]} Ne6 {[%emt 0:05:24]} 14. Bc2 {[%emt 0:08:21]} Bc6 {[%emt 0:01:04]} 15. b4 {[%emt 0:04:44]} Rc8 {[%emt 0:00:29]} 16. Bb3 {[%emt 0:10:45]} Nd4 {[%emt 0:01:21]} 17. f3 {[%emt 0:07:42]} f5 {[%emt 0:06:00]} 18. exf5 {[%emt 0:08:37]} Nxf5 {[%emt 0:02:30]} 19. Bg5 {[%emt 0:04:43]} Bf6 {[%emt 0:01:58]} 20. Bxf6 {[%emt 0:00:22]} Qxf6 {[%emt 0:03:55]} 21. b5 {[%emt 0:04:00]} Ba8 {[%emt 0:00:45]} 22. Ne4 {[%emt 0:01:06]} Qh4 {[%emt 0:03:23]} 23. g3 {[%emt 0:06:34]} Qd8 {[%emt 0:07:08]} 24. c5+ {[%emt 0:22:00]} Kh8 {[%emt 0:00:27]} 25. Qxd7 {[%emt 0:00:41]} Nd4 {[%emt 0:07:20]} 26. Qxd8 {[%emt 0:02:22]} Rcxd8 {[%emt 0:00:54]} 27. Ng5 {[%emt 0:03:07]} bxc5 {[%emt 0:09:24]} 28. f4 {[%emt 0:00:43]} Kg7 {[%emt 0:02:48]} 29. Rxd4 {[%emt 0:01:33]} exd4 {[%emt 0:00:23]} 30. Ne6+ {[%emt 0:00:04]} Kf6 {[%emt 0:00:09]} 31. Rc1 {[%emt 0:01:23]} d3 {[%emt 0:05:41]} 32. Kf2 {[%emt 0:00:17]} Bd5 {[%emt 0:15:22]} 33. Nxf8 {[%emt 0:00:58]} h6 {[%emt 0:02:44]} 34. Ke3 {[%emt 0:01:10]} c4 {[%emt 0:01:36]} 35. Nh7+ {[%emt 0:00:04]} Kg7 {[%emt 0:02:15]} 36. Bxc4 {[%emt 0:00:57]} d2 {[%emt 0:02:12]} 37. Kxd2 {[%emt 0:00:09]} Bxc4+ {[%emt 0:00:05]} 38. Ke3 {[%emt 0:00:08]} Bxb5 {[%emt 0:00:44]} 39. Rc7+ {[%emt 0:01:20]} Rd7 {[%emt 0:00:06]} 40. Rc5 {[%emt 0:00:20]} a6 {[%emt 0:00:33]} 41. Ng5 {[%emt 0:31:10]} hxg5 {[%emt 0:30:04]} 42. Rxg5 {[%emt 0:00:08]} Kf6 {[%emt 0:01:30]} 43. h4 {[%emt 0:00:00]} Rd3+ {[%emt 0:00:00]} 44. Ke4 {[%emt 0:00:00]} Ra3 {[%emt 0:00:00]} 45. g4 {[%emt 0:00:00]} Bd7 {[%emt 0:00:00]} 46. h5 {[%emt 0:00:00]} gxh5 {[%emt 0:00:00]} 47. gxh5 {[%emt 0:00:00]} Ra4+ {[%emt 0:00:00]} 48. Ke3 {[%emt 0:00:00]} Rxa2 {[%emt 0:00:00]} 49. Rg6+ {[%emt 0:00:00]} Kf7 {[%emt 0:00:00]} 50. Rb6 {[%emt 0:00:00]} Bf5 {[%emt 0:00:00]} 51. Kd4 {[%emt 0:00:00]} Kg7 {[%emt 0:00:00]} 52. Rd6 {[%emt 0:00:00]} a5 {[%emt 0:06:18]} 53. Ke5 {[%emt 0:00:00]} Bh3 {[%emt 0:02:11]} 54. Rg6+ {[%emt 0:00:00]} Kh7 {[%emt 0:01:30]} 55. Rg3 {[%emt 0:00:00]} Bc8 {[%emt 0:02:58]} 56. Kf6 {[%emt 0:01:22]} Rf2 {[%emt 0:00:23]} 57. Rg7+ {[%emt 0:02:48]} Kh8 {[%emt 0:00:01]} 58. Rc7 {[%emt 0:00:37]} Rxf4+ {[%emt 0:02:49]} 59. Kg5 {[%emt 0:00:48]} Rf8 {[%emt 0:00:59]} 60. Ra7 {[%emt 0:00:23]} Rf1 {[%emt 0:07:29]} 61. Rxa5 {[%emt 0:00:35]} Rf5+ {[%emt 0:01:21]} 62. Rxf5 {[%emt 0:00:11]} Bxf5 {[%emt 0:00:04]} 63. Kxf5 {[%emt 0:00:03]} Kh7 {[%emt 0:00:05]} 64. Kg5 {[%emt 0:00:02]} Kg7 {[%emt 0:00:06]} 65. h6+ {[%emt 0:00:03]} Kh7 {[%emt 0:00:05]} 66. Kh5 {[%emt 0:00:02]} Kg8 {[%emt 0:00:09]} 67. Kg6 {[%emt 0:00:03]} Kh8 {[%emt 0:00:03]} 68. h7 {[%emt 0:00:35]} 1/2-1/2

[Event "WYCC U18 Girls 2019"]
[Site "Mumbai"]
[Date "2019.10.09"]
[Round "8.11"]
[White "Tarini Goyal"]
[Black "Sanskriti Goyal"]
[Result "1/2-1/2"]
[ECO "A65"]
[WhiteElo "2128"]
[BlackElo "1980"]
[Annotator "ChessBase"]
[PlyCount "145"]
[EventDate "2019.10.02"]
[EventType "swiss"]
[EventCountry "IND"]
[SourceTitle "playchess.com"]
[Source "ChessBase"]
[SourceQuality "1"]
[TimeControl "40/5400+30:1800+30"]

1. d4 {[%emt 0:00:00]} Nf6 {[%emt 0:00:01]} 2. c4 {[%emt 0:00:00]} c5 {[%emt 0:00:05]} 3. d5 {[%emt 0:00:00]} e6 {[%emt 0:00:03]} 4. Nc3 {[%emt 0:00:00]} exd5 {[%emt 0:00:03]} 5. cxd5 {[%emt 0:00:05]} d6 {[%emt 0:00:03]} 6. e4 {[%emt 0:00:19]} g6 {[%emt 0:00:20]} 7. h3 {[%emt 0:00:20]} Bg7 {[%emt 0:01:14]} 8. Bd3 {[%emt 0:00:33]} O-O {[%emt 0:01:46]} 9. Nf3 {[%emt 0:00:23]} b5 {[%emt 0:01:59]} 10. Bxb5 {[%emt 0:00:55]} Nxe4 {[%emt 0:00:35]} 11. Nxe4 {[%emt 0:00:08]} Qa5+ {[%emt 0:00:04]} 12. Nfd2 {[%emt 0:00:11]} Qxb5 {[%emt 0:00:05]} 13. Nxd6 {[%emt 0:00:17]} Qa6 {[%emt 0:02:26]} 14. N2c4 {[%emt 0:01:44]} Nd7 {[%emt 0:02:51]} 15. O-O {[%emt 0:00:15]} Nb6 {[%emt 0:00:04]} 16. Nxb6 {[%emt 0:03:14]} Qxb6 {[%emt 0:00:02]} 17. Nxc8 {[%emt 0:04:31]} Raxc8 {[%emt 0:00:07]} 18. Rb1 {[%emt 0:08:50]} Rfd8 {[%emt 0:20:38]} 19. Bg5 {[%emt 0:26:02]} Rd7 {[%emt 0:08:15]} 20. Qg4 {[%emt 0:09:01]} Qb7 {[%emt 0:03:18]} 21. Rfd1 {[%emt 0:04:53]} h5 {[%emt 0:09:48]} 22. Qc4 {[%emt 0:12:50]} Bd4 {[%emt 0:02:09]} 23. Be3 {[%emt 0:10:12]} Rxd5 {[%emt 0:12:20]} 24. b4 {[%emt 0:04:05]} cxb4 {[%emt 0:11:04]} 25. Rxb4 {[%emt 0:10:55]} Rxc4 {[%emt 0:00:18]} 26. Rxb7 {[%emt 0:00:02]} Rd6 {[%emt 0:04:16]} 27. Rxd4 {[%emt 0:01:05]} Rdxd4 {[%emt 0:00:03]} 28. Bxd4 {[%emt 0:00:04]} Rxd4 {[%emt 0:00:06]} 29. Rxa7 {[%emt 0:00:04]} Rd2 {[%emt 0:00:03]} 30. h4 {[%emt 0:01:06]} Kg7 {[%emt 0:01:19]} 31. g3 {[%emt 0:00:27]} Kf6 {[%emt 0:05:45]} 32. a4 {[%emt 0:00:07]} Ra2 {[%emt 0:00:28]} 33. a5 {[%emt 0:00:06]} Ke6 {[%emt 0:01:59]} 34. Kg2 {[%emt 0:00:28]} Ra3 {[%emt 0:00:36]} 35. a6 {[%emt 0:00:27]} Kf6 {[%emt 0:01:40]} 36. Ra8 {[%emt 0:00:14]} Ke6 {[%emt 0:01:18]} 37. Kf1 {[%emt 0:01:45]} Ra2 {[%emt 0:00:18]} 38. Ke1 {[%emt 0:00:22]} Kf6 {[%emt 0:00:23]} 39. Ra7 {[%emt 0:00:23]} Ke6 {[%emt 0:01:17]} 40. Kf1 {[%emt 0:00:09]} Kf6 {[%emt 0:00:08]} 41. Kg2 {[%emt 0:32:30]} Ra3 {[%emt 0:30:34]} 42. Ra8 {[%emt 0:01:02]} Ke6 {[%emt 0:00:35]} 43. Kh3 {[%emt 0:00:00]} Kf6 {[%emt 0:00:00]} 44. a7 {[%emt 0:00:00]} Ra2 {[%emt 0:00:00]} 45. f3 {[%emt 0:00:00]} Ra3 {[%emt 0:00:00]} 46. Kg2 {[%emt 0:00:00]} Ra2+ {[%emt 0:00:00]} 47. Kf1 {[%emt 0:00:00]} Kg7 {[%emt 0:00:00]} 48. Ke1 {[%emt 0:00:00]} Ra1+ {[%emt 0:00:00]} 49. Kd2 {[%emt 0:00:00]} Ra2+ {[%emt 0:00:00]} 50. Kc3 {[%emt 0:00:00]} Ra3+ {[%emt 0:00:00]} 51. Kb4 {[%emt 0:00:00]} Ra1 {[%emt 0:00:00]} 52. g4 {[%emt 0:00:00]} hxg4 {[%emt 0:00:00]} 53. fxg4 {[%emt 0:00:00]} Rb1+ {[%emt 0:00:00]} 54. Kc5 {[%emt 0:00:00]} Rc1+ {[%emt 0:00:00]} 55. Kd5 {[%emt 0:00:00]} Rd1+ {[%emt 0:00:00]} 56. Ke5 {[%emt 0:00:00]} Re1+ {[%emt 0:00:00]} 57. Kf4 {[%emt 0:00:00]} Rf1+ {[%emt 0:00:00]} 58. Kg3 {[%emt 0:00:00]} Rg1+ {[%emt 0:00:00]} 59. Kf2 {[%emt 0:00:00]} Ra1 {[%emt 0:00:00]} 60. h5 {[%emt 0:00:00]} gxh5 {[%emt 0:00:00]} 61. gxh5 {[%emt 0:00:00]} Ra2+ {[%emt 0:00:00]} 62. Ke3 {[%emt 0:00:00]} Ra3+ {[%emt 0:00:00]} 63. Kf4 {[%emt 0:00:00]} Ra4+ {[%emt 0:00:00]} 64. Ke5 {[%emt 0:00:00]} Ra5+ {[%emt 0:00:00]} 65. Kd4 {[%emt 0:00:00]} f5 {[%emt 0:00:00]} 66. Ke3 {[%emt 0:00:00]} Ra4 {[%emt 0:00:00]} 67. Kf3 {[%emt 0:00:00]} f4 {[%emt 0:00:00]} 68. Kg4 {[%emt 0:00:00]} Kh7 {[%emt 0:00:00]} 69. h6 {[%emt 0:00:00]} f3+ {[%emt 0:00:00]} 70. Kxf3 {[%emt 0:00:00]} Ra3+ {[%emt 0:00:00]} 71. Ke4 {[%emt 0:00:00]} Ra4+ {[%emt 0:00:00]} 72. Ke5 {[%emt 0:00:00]} Ra1 {[%emt 0:00:00]} 73. Ke4 1/2-1/2

[Event "WYCC U18 Girls 2019"]
[Site "Mumbai"]
[Date "2019.10.09"]
[Round "8.12"]
[White "Aciu, Malina-Andreea"]
[Black "Pandey Srishti"]
[Result "1/2-1/2"]
[ECO "C45"]
[WhiteElo "2076"]
[BlackElo "1963"]
[Annotator "NA"]
[PlyCount "55"]
[EventDate "2019.10.02"]
[EventType "swiss"]
[EventCountry "IND"]
[SourceTitle "playchess.com"]
[Source "ChessBase"]
[SourceQuality "1"]
[TimeControl "40/5400+30:1800+30"]

1. e4 e5 2. Nf3 Nc6 3. d4 exd4 4. Nxd4 Nf6 5. Nxc6 bxc6 6. e5 Qe7 7. Qe2 Nd5 8. h4 h6 9. c4 Ba6 10. Rh3 Rb8 11. Ra3 Bxc4 12. Qxc4 Qxe5+ 13. Qe2 Qxe2+ 14. Bxe2 Bxa3 15. Nxa3 Kd8 16. b3 Re8 17. Kf1 f6 18. h5 a5 19. Bd2 Ra8 20. Nc4 a4 21. b4 a3 22. Rb1 Re4 23. g3 Ra4 24. Bd1 Ra7 25. Be2 Ra4 26. Bd1 Ra7 27. Be2 Ra4 28. Bd1 1/2-1/2

[Event "WYCC U18 Girls 2019"]
[Site "Mumbai"]
[Date "2019.10.09"]
[Round "8.13"]
[White "Andolfatto, Maria"]
[Black "Nestorovic, Katarina"]
[Result "1-0"]
[ECO "A15"]
[WhiteElo "2037"]
[BlackElo "2073"]
[Annotator "NA"]
[PlyCount "77"]
[EventDate "2019.10.02"]
[EventType "swiss"]
[EventCountry "IND"]
[SourceTitle "playchess.com"]
[Source "ChessBase"]
[SourceQuality "1"]
[TimeControl "40/5400+30:1800+30"]

1. c4 {[%emt 0:00:00]} Nf6 {[%emt 0:01:02]} 2. g3 {[%emt 0:01:06]} e5 {[%emt 0:00:32]} 3. Bg2 {[%emt 0:00:16]} d5 {[%emt 0:00:15]} 4. cxd5 {[%emt 0:00:12]} Nxd5 {[%emt 0:00:05]} 5. Nf3 {[%emt 0:00:30]} Nc6 {[%emt 0:00:13]} 6. O-O {[%emt 0:02:00]} Nb6 {[%emt 0:01:22]} 7. Nc3 {[%emt 0:00:20]} Be7 {[%emt 0:01:02]} 8. a3 {[%emt 0:00:30]} O-O {[%emt 0:05:49]} 9. b4 {[%emt 0:00:10]} a6 {[%emt 0:00:18]} 10. Rb1 {[%emt 0:03:02]} Re8 {[%emt 0:00:49]} 11. d3 {[%emt 0:00:27]} Bf8 {[%emt 0:01:05]} 12. Bg5 {[%emt 0:00:42]} f6 {[%emt 0:01:09]} 13. Be3 {[%emt 0:01:54]} Nd4 {[%emt 0:03:03]} 14. Bxd4 {[%emt 0:02:38]} exd4 {[%emt 0:00:12]} 15. Ne4 {[%emt 0:00:08]} a5 {[%emt 0:08:30]} 16. Qc2 {[%emt 0:08:52]} axb4 {[%emt 0:09:01]} 17. axb4 {[%emt 0:00:29]} Be6 {[%emt 0:06:06]} 18. Rfc1 {[%emt 0:05:21]} c6 {[%emt 0:05:16]} 19. Nc5 {[%emt 0:04:13]} Bc8 {[%emt 0:06:43]} 20. Qb2 {[%emt 0:04:54]} Bxc5 {[%emt 0:10:04]} 21. bxc5 {[%emt 0:11:31]} Na4 {[%emt 0:00:52]} 22. Qxd4 {[%emt 0:04:02]} Qxd4 {[%emt 0:02:44]} 23. Nxd4 {[%emt 0:00:02]} Re5 {[%emt 0:05:26]} 24. Nxc6 {[%emt 0:04:30]} bxc6 {[%emt 0:05:14]} 25. Bxc6 {[%emt 0:00:12]} Ra6 {[%emt 0:00:31]} 26. Bb5 {[%emt 0:09:23]} Ra5 {[%emt 0:07:13]} 27. d4 {[%emt 0:00:48]} Re7 {[%emt 0:00:52]} 28. Rb4 {[%emt 0:10:39]} Rea7 {[%emt 0:03:16]} 29. Rcc4 {[%emt 0:04:20]} Ba6 {[%emt 0:01:48]} 30. Bxa6 {[%emt 0:01:15]} R5xa6 {[%emt 0:00:30]} 31. c6 {[%emt 0:01:01]} Rc7 {[%emt 0:06:34]} 32. Rxa4 {[%emt 0:00:57]} Raxc6 {[%emt 0:00:15]} 33. Rxc6 {[%emt 0:00:30]} Rxc6 {[%emt 0:00:04]} 34. Ra7 {[%emt 0:00:29]} f5 {[%emt 0:00:21]} 35. Kg2 {[%emt 0:02:29]} Rc2 {[%emt 0:01:20]} 36. Kf3 {[%emt 0:03:15]} Rd2 {[%emt 0:00:36]} 37. Ke3 {[%emt 0:01:39]} Rd1 {[%emt 0:00:08]} 38. h4 {[%emt 0:00:48]} g6 {[%emt 0:00:27]} 39. Ra2 {[%emt 0:02:19]} 1-0

[Event "WYCC U18 Girls 2019"]
[Site "Mumbai"]
[Date "2019.10.09"]
[Round "8.14"]
[White "Nomindalai Tumurbaatar"]
[Black "Sankova, Stella"]
[Result "*"]
[ECO "A45"]
[WhiteElo "2061"]
[BlackElo "1926"]
[Annotator "NA"]
[PlyCount "35"]
[EventDate "2019.10.02"]
[EventType "swiss"]
[EventCountry "IND"]
[SourceTitle "playchess.com"]
[Source "ChessBase"]
[SourceQuality "1"]
[TimeControl "40/5400+30:1800+30"]

1. d4 Nf6 2. Bf4 d5 3. e3 c5 4. c3 Nc6 5. Nd2 cxd4 6. exd4 Bf5 7. Ngf3 e6 8. Qb3 Qc8 9. Nh4 Be4 10. Nxe4 dxe4 11. g3 Be7 12. Ng2 O-O 13. Be2 Nd5 14. Bd2 Qd7 15. O-O e5 16. dxe5 Nxe5 17. Rad1 Rfd8 18. Be3 *

[Event "WYCC U18 Girls 2019"]
[Site "Mumbai"]
[Date "2019.10.09"]
[Round "8.14"]
[White "Nomindalai Tumurbaatar"]
[Black "Sankova, Stella"]
[Result "1-0"]
[ECO "A45"]
[WhiteElo "2061"]
[BlackElo "1926"]
[Annotator "NA RC"]
[PlyCount "55"]
[EventDate "2019.10.02"]
[EventType "swiss"]
[EventCountry "IND"]
[SourceTitle "playchess.com"]
[Source "ChessBase"]
[SourceQuality "1"]
[TimeControl "40/5400+30:1800+30"]

1. d4 Nf6 2. Bf4 d5 3. e3 c5 4. c3 Nc6 5. Nd2 cxd4 6. exd4 Bf5 7. Ngf3 e6 8. Qb3 Qc8 9. Nh4 Be4 10. Nxe4 dxe4 11. g3 Be7 12. Ng2 O-O 13. Be2 Nd5 14. Bd2 Qd7 15. O-O e5 16. dxe5 Nxe5 17. Rad1 Rfd8 18. Bf4 Qf5 19. Bxe5 Qxe5 20. Bc4 Nf6 21. Bxf7+ Kh8 22. Qe6 Qc7 23. Nf4 Rd6 24. Rxd6 Bxd6 25. Ng6+ hxg6 26. Qh3+ Nh5 27. Bxg6 Kg8 28. Qxh5 1-0

[Event "WYCC U18 Girls 2019"]
[Site "Mumbai"]
[Date "2019.10.10"]
[Round "9.1"]
[White "Shuvalova, Polina"]
[Black "Obolentseva, Alexandra"]
[Result "1/2-1/2"]
[ECO "A65"]
[WhiteElo "2412"]
[BlackElo "2282"]
[Annotator "NA"]
[PlyCount "100"]
[EventDate "2019.10.02"]
[EventType "swiss"]
[EventCountry "IND"]
[SourceTitle "playchess.com"]
[Source "ChessBase"]
[SourceQuality "1"]
[TimeControl "40/5400+30:1800+30"]

1. d4 {[%emt 0:00:00]} Nf6 {[%emt 0:00:00]} 2. c4 {[%emt 0:00:00]} e6 {[%emt 0:00:11]} 3. Nc3 {[%emt 0:00:00]} c5 {[%emt 0:00:45]} 4. d5 {[%emt 0:00:00]} exd5 {[%emt 0:00:06]} 5. cxd5 {[%emt 0:00:00]} d6 {[%emt 0:00:05]} 6. e4 {[%emt 0:00:00]} g6 {[%emt 0:00:05]} 7. Nge2 {[%emt 0:00:10]} Bg7 {[%emt 0:00:08]} 8. Ng3 {[%emt 0:00:04]} O-O {[%emt 0:00:09]} 9. Be2 {[%emt 0:00:02]} a6 {[%emt 0:00:13]} 10. a4 {[%emt 0:00:11]} h5 {[%emt 0:00:07] A65: Modern Benoni: 6 e4} (10... Nbd7 11. O-O Re8 12. Bg5 h6 13. Be3 h5 14. Bg5 Qa5 15. f4 Qb4 16. Qc2 Nh7 17. Bh4 c4 18. Bxh5 gxh5 19. Nxh5 {½-½ (54) Mchedlishvili,M (2571)-Can,E (2595) Konya 2019}) 11. Bg5 {[%emt 0:00:30]} Qc7 {[%emt 0:02:34]} 12. Qd2 {[%emt 0:02:49]} Nbd7 {[%emt 0:01:14]} 13. O-O {[%emt 0:01:01]} Re8 {[%emt 0:03:29]} 14. f4 {[%emt 0:03:44]} Nh7 {[%emt 0:02:13]} 15. Bh4 {[%emt 0:00:49]} Rb8 {[%emt 0:06:11]} 16. Kh1 {[%emt 0:03:16]} c4 {[%emt 0:04:31]} 17. e5 {[%emt 0:06:35]} dxe5 {[%emt 0:00:50]} 18. f5 {[%emt 0:04:19]} b5 $146 {[%emt 0:07:02]} ({Predecessor:} 18... Ndf6 19. d6 {1-0 (31) Reuker,J (2338)-Woelk,T (2176) Willingen 2018}) 19. axb5 {[%emt 0:00:25]} axb5 {[%emt 0:00:07]} 20. d6 {[%emt 0:12:11]} Qc5 {[%emt 0:00:33]} 21. Nge4 {[%emt 0:01:31]} Qd4 {[%emt 0:01:27]} 22. fxg6 {[%emt 0:02:16]} fxg6 {[%emt 0:00:33]} 23. Qc2 {[%emt 0:03:53]} Bb7 {[%emt 0:04:23]} 24. Rad1 {[%emt 0:12:41]} Qe3 {[%emt 0:00:51]} 25. Bf2 {[%emt 0:03:17]} Bxe4 {[%emt 0:00:54]} 26. Nxe4 {[%emt 0:00:22]} Qh6 {[%emt 0:01:13]} 27. Nc3 {[%emt 0:07:59]} Kh8 {[%emt 0:02:24]} 28. Nd5 {[%emt 0:00:46]} Nhf6 {[%emt 0:11:22]} 29. Be3 {[%emt 0:01:28]} Qh7 {[%emt 0:03:03]} 30. Nxf6 {[%emt 0:02:06]} Bxf6 {[%emt 0:00:40]} 31. Bf3 {[%emt 0:00:20]} e4 {[%emt 0:18:39]} 32. Bxe4 {[%emt 0:00:07]} Qg7 {[%emt 0:00:06]} 33. Bc1 {[%emt 0:05:34]} (33. Ba7 $142) 33... Ne5 {[%emt 0:01:07]} 34. h3 {[%emt 0:01:51]} Rbd8 {[%emt 0:01:11]} 35. Qf2 {[%emt 0:03:21]} Re6 {[%emt 0:00:57]} 36. Bf4 {[%emt 0:07:39]} Rexd6 {[%emt 0:02:50]} 37. Rxd6 {[%emt 0:00:07]} Rxd6 {[%emt 0:00:04]} 38. Qc5 {[%emt 0:00:34]} Rd8 {[%emt 0:05:54]} ({Better is} 38... Qe7 $1 $11) 39. Qxb5 {[%emt 0:00:50]} ({White should try} 39. Bh2 $16) 39... Nd3 {[%emt 0:00:49]} 40. Bg5 {[%emt 0:06:54]} Bxg5 {[%emt 0:11:38]} 41. Qxg5 $16 {[%emt 0:30:12] Double Attack} Rf8 {[%emt 0:37:15]} 42. Rxf8+ {[%emt 0:04:39]} Qxf8 {[%emt 0:02:14]} 43. Bxg6 {[%emt 0:00:37]} Qf1+ {[%emt 0:00:29]} 44. Kh2 {[%emt 0:00:01]} Qf4+ {[%emt 0:00:15]} 45. Qxf4 {[%emt 0:00:08]} Nxf4 {[%emt 0:00:05]} 46. Bb1 {[%emt 0:00:00]} Ne2 {[%emt 0:00:00]} 47. g3 {[%emt 0:00:00]} c3 {[%emt 0:00:00]} 48. bxc3 {[%emt 0:00:00]} Nxc3 {[%emt 0:00:00]} 49. Bg6 {[%emt 0:00:00]} Ne2 {[%emt 0:00:00]} 50. Bxh5 {[%emt 0:00:00]} Nxg3 {[%emt 0:00:00]} 1/2-1/2

[Event "WYCC U18 Girls 2019"]
[Site "Mumbai"]
[Date "2019.10.10"]
[Round "9.2"]
[White "Schulze, Lara"]
[Black "Vantika Agrawal"]
[Result "1/2-1/2"]
[ECO "B33"]
[WhiteElo "2327"]
[BlackElo "2283"]
[Annotator "NA"]
[PlyCount "89"]
[EventDate "2019.10.02"]
[EventType "swiss"]
[EventCountry "IND"]
[SourceTitle "playchess.com"]
[Source "ChessBase"]
[SourceQuality "1"]
[TimeControl "40/5400+30:1800+30"]

1. e4 {[%emt 0:00:00]} c5 {[%emt 0:00:46]} 2. Nf3 {[%emt 0:00:00]} Nc6 {[%emt 0:00:06]} 3. d4 {[%emt 0:00:00]} cxd4 {[%emt 0:00:33]} 4. Nxd4 {[%emt 0:00:00]} Nf6 {[%emt 0:00:03]} 5. Nc3 {[%emt 0:00:00]} e5 {[%emt 0:00:15]} 6. Ndb5 {[%emt 0:00:07]} d6 {[%emt 0:00:06]} 7. Bg5 {[%emt 0:00:09]} a6 {[%emt 0:00:04]} 8. Na3 {[%emt 0:00:07]} b5 {[%emt 0:00:05]} 9. Nd5 {[%emt 0:00:08]} Be7 {[%emt 0:00:07]} 10. Bxf6 {[%emt 0:00:05]} Bxf6 {[%emt 0:00:04]} 11. c3 {[%emt 0:00:07]} Bg5 {[%emt 0:01:26]} 12. Nc2 {[%emt 0:00:22]} O-O {[%emt 0:00:32]} 13. a4 {[%emt 0:00:19]} bxa4 {[%emt 0:00:26]} 14. Rxa4 {[%emt 0:00:20]} a5 {[%emt 0:00:31]} 15. Bc4 {[%emt 0:00:46]} Bd7 {[%emt 0:00:25] B33: Sicilian: Pelikan and Sveshnikov Variations} (15... Rb8 16. b3 Kh8 17. Nce3 g6 18. h4 Bxh4 19. g3 Bg5 20. f4 exf4 21. gxf4 Bh4+ 22. Kf1 Be6 23. Ra2 f5 24. Rah2 g5 {½-½ (37) Yu,Y (2760)-Lenic,L (2662) chess.com INT 2018}) 16. Nce3 {[%emt 0:01:01]} Kh8 {[%emt 0:14:01]} 17. Ra2 {[%emt 0:04:33]} Rb8 {[%emt 0:08:04]} 18. b3 {[%emt 0:05:38]} Bh6 {[%emt 0:24:58]} 19. h4 {[%emt 0:19:04]} Ne7 $146 {[%emt 0:20:11]} ({Predecessor:} 19... g6 20. h5 Kg7 21. g3 Be6 22. f4 exf4 23. gxf4 Ne7 24. Rg2 Nxd5 25. Nxd5 Bxd5 26. Qxd5 Bxf4 {1-0 (36) Nepomniachtchi,I (2520)-Kukula,P (2164) playchess.com INT 2006}) 20. Nxe7 {[%emt 0:16:59]} Qxe7 {[%emt 0:01:33]} 21. Nd5 $14 {[%emt 0:14:37]} ({Reject} 21. Rxa5 Bxe3 22. fxe3 Be6 $11) 21... Qd8 {[%emt 0:00:25]} 22. g3 {[%emt 0:00:42]} f5 {[%emt 0:04:02]} 23. exf5 {[%emt 0:01:13]} Bxf5 {[%emt 0:00:16]} 24. O-O {[%emt 0:01:16]} Bh3 {[%emt 0:07:54]} 25. Re1 {[%emt 0:01:03]} Rb7 {[%emt 0:03:37]} 26. Ne3 {[%emt 0:04:39]} Bxe3 {[%emt 0:09:34]} 27. Rxe3 {[%emt 0:00:28]} Ra7 {[%emt 0:02:50]} 28. Kh2 {[%emt 0:09:25]} Bc8 {[%emt 0:00:23]} 29. Rd2 {[%emt 0:02:02]} Qc7 {[%emt 0:00:39]} 30. Rf3 {[%emt 0:03:32]} Rxf3 {[%emt 0:00:26]} 31. Qxf3 {[%emt 0:01:49]} Qd8 {[%emt 0:00:31]} 32. Qc6 {[%emt 0:05:49]} Rd7 {[%emt 0:00:35]} 33. Be6 {[%emt 0:06:02]} Rc7 {[%emt 0:00:16]} 34. Rxd6 {[%emt 0:01:14]} Qf8 {[%emt 0:00:15]} 35. Qxc7 {[%emt 0:02:27]} Qxf2+ {[%emt 0:00:10]} 36. Kh3 {[%emt 0:00:16]} Bxe6+ {[%emt 0:00:17]} 37. Rxe6 {[%emt 0:00:07]} Qf5+ {[%emt 0:00:41]} 38. Kg2 {[%emt 0:01:08]} Qc2+ {[%emt 0:00:49]} 39. Kf3 {[%emt 0:00:45]} Qd3+ {[%emt 0:00:27]} 40. Kf2 {[%emt 0:01:00]} Qd2+ {[%emt 0:00:25]} 41. Kf3 {[%emt 0:30:40]} Qd3+ {[%emt 0:30:37]} 42. Kg4 {[%emt 0:00:00]} Qe4+ {[%emt 0:00:00]} 43. Kg5 {[%emt 0:00:00]} h6+ {[%emt 0:00:00]} 44. Rxh6+ {[%emt 0:00:00]} gxh6+ {[%emt 0:00:00]} 45. Kxh6 {[%emt 0:00:00]} 1/2-1/2